bitfinex-derivatives/quotes_SOLF0:USTF0_20250501
["timestamp","ask_amount","ask_price","bid_price","bid_amount"]
[1746077546296,23.36,148.69,148.64,6.7265]
[1746077546494,23.38,148.72,148.62,23.38]
[1746077546695,23.38,148.72,148.63,3.9878]
[1746077546997,6.7246,148.69,148.65,6.7258]
[1746077547697,6.7246,148.69,148.66,6.7257]
[1746077548496,6.7246,148.69,148.65,6.726]
[1746077548697,6.7248,148.68,148.65,6.726]
[1746077549795,6.7245,148.69,148.66,6.7256]
[1746077551127,6.7245,148.69,148.65,6.726]
[1746077555528,6.724,148.7,148.66,6.7256]
[1746077557914,6.7245,148.69,148.66,6.7256]
[1746077559299,23.38,148.72,148.63,5.9081]
[1746077559504,23.38,148.72,148.64,23.38]
[1746077559697,30.50624912,148.75,148.64,23.38]
[1746077560293,30.50624912,148.75,148.68,6.7244]
[1746077560496,30.50624912,148.75,148.64,23.38]
[1746077561402,30.50624912,148.75,148.66,6.7253]
[1746077562204,6.7242,148.7,148.66,6.7253]
[1746077562598,6.7242,148.7,148.64,23.38]
[1746077562599,30.50624912,148.75,148.64,23.38]
[1746077563805,30.50624912,148.75,148.67,6.7249]
[1746077563806,6.7242,148.7,148.67,6.7249]
[1746077564310,30.50624912,148.75,148.64,23.38]
[1746077564608,6.7246,148.69,148.66,6.7255]
[1746077566003,30.50624912,148.75,148.64,23.38]
[1746077566409,7.12624912,148.72,148.64,23.38]
[1746077567207,6.7252,148.68,148.64,30.1063]
[1746077567708,6.7253,148.67,148.64,30.1063]
[1746077568713,7.12624912,148.72,148.64,23.38]
[1746077568908,25.4712,148.71,148.64,23.38]
[1746077569709,6.7257,148.66,148.64,30.1066]
[1746077570512,6.7254,148.67,148.64,30.1066]
[1746077571611,6.7254,148.67,148.65,6.7261]
[1746077571804,6.725,148.68,148.65,6.7261]
[1746077573616,23.38,148.71,148.64,23.38]
[1746077573914,23.36,148.74,148.64,23.38]
[1746077575115,6.7243,148.7,148.66,6.7253]
[1746077576017,6.7243,148.7,148.67,6.7252]
[1746077577115,6.7245,148.69,148.66,6.7255]
[1746077577412,23.36,148.74,148.64,23.38]
[1746077577819,6.7239,148.71,148.67,6.7249]
[1746077579515,23.36,148.74,148.67,6.7249]
[1746077579817,6.724,148.7,148.67,6.7249]
[1746077584337,6.724,148.7,148.66,6.7255]
[1746077585437,6.7244,148.69,148.66,6.7255]
[1746077586739,6.7241,148.7,148.66,6.7255]
[1746077586939,23.36,148.74,148.64,23.38]
[1746077588239,6.7236,148.71,148.68,6.7248]
[1746077589739,6.7226,148.73,148.64,23.38]
[1746077590432,6.723,148.72,148.69,6.724]
[1746077591439,6.7227,148.73,148.69,6.724]
[1746077592743,6.723,148.72,148.69,6.724]
[1746077593040,23.36,148.74,148.68,23.36]
[1746077593743,6.7229,148.73,148.69,6.7242]
[1746077594546,6.723,148.72,148.69,6.7242]
[1746077595346,6.7226,148.73,148.7,6.7238]
[1746077596143,6.7222,148.74,148.71,6.7234]
[1746077598545,23.36,148.77,148.69,2.0394]
[1746077598746,2.053,148.79,148.69,13.30954912]
[1746077598935,23.34,148.8,148.69,13.30954912]
[1746077599138,6.7196,148.8,148.72,7.12624912]
[1746077599345,23.34,148.83,148.73,23.34]
[1746077599747,6.7192,148.81,148.77,6.7205]
[1746077600646,6.7186,148.82,148.74,3.927]
[1746077601148,23.34,148.83,148.74,3.927]
[1746077601341,23.34,148.83,148.75,9.15904912]
[1746077601647,2.053,148.84,148.78,6.7199]
[1746077601849,6.7184,148.83,148.78,23.34]
[1746077602044,23.34,148.86,148.78,23.34]
[1746077602243,23.34,148.86,148.8,6.719]
[1746077602643,6.7176,148.84,148.8,6.719]
[1746077609156,32.52214912,148.89,148.78,30.46624912]
[1746077609451,25.3959,148.89,148.78,30.46624912]
[1746077609649,6.7167,148.86,148.82,6.7182]
[1746077609851,6.7167,148.86,148.83,23.34]
[1746077613153,6.7163,148.87,148.83,30.0577]
[1746077613857,6.7168,148.86,148.83,30.0577]
[1746077615157,6.7164,148.87,148.83,30.0577]
[1746077618062,25.3959,148.89,148.83,23.34]
[1746077618561,32.52214912,148.89,148.83,23.34]
[1746077618762,32.52214912,148.89,148.8,25.309]
[1746077619161,6.7178,148.84,148.8,32.0281]
[1746077619955,6.7178,148.84,148.81,6.7189]
[1746077620755,6.717,148.86,148.82,6.7184]
[1746077622162,6.7164,148.87,148.83,6.718]
[1746077623463,6.7158,148.88,148.85,6.717]
[1746077626269,6.7153,148.9,148.84,23.32]
[1746077626465,23.32,148.92,148.84,23.32]
[1746077626764,2.0474,148.94,148.84,23.32]
[1746077627065,6.7142,148.92,148.88,6.7155]
[1746077627266,23.32,148.99,148.89,23.32]
[1746077627665,6.7124,148.96,148.91,6.714]
[1746077627865,23.32,148.99,148.91,6.714]
[1746077628167,6.713,148.95,148.91,6.714]
[1746077629068,6.7131,148.94,148.91,6.714]
[1746077629971,6.7131,148.94,148.9,6.7147]
[1746077630867,7.12624912,148.97,148.89,23.32]
[1746077631264,6.7149,148.9,148.89,23.32]
[1746077631470,7.12624912,148.94,148.86,6.7165]
[1746077631471,30.44624912,148.94,148.86,23.32]
[1746077631771,6.715,148.9,148.87,6.7162]
[1746077632471,6.715,148.9,148.86,30.0365]
[1746077632671,30.44624912,148.94,148.86,30.0365]
[1746077632672,6.7153,148.89,148.86,30.0365]
[1746077632971,2.1065,148.93,148.86,23.32]
[1746077633273,4.137,148.93,148.86,23.32]
[1746077634076,6.7155,148.89,148.86,23.32]
[1746077634669,6.7155,148.89,148.86,30.0366]
[1746077636775,4.137,148.93,148.87,6.7161]
[1746077637278,6.7147,148.91,148.87,6.7161]
[1746077638477,4.137,148.93,148.83,4.0157]
[1746077638774,7.12624912,148.91,148.83,2.0282]
[1746077638969,6.7158,148.88,148.83,2.0282]
[1746077639484,6.7158,148.88,148.84,6.7172]
[1746077639677,23.32,148.9,148.84,6.7172]
[1746077639879,23.32,148.9,148.82,23.32]
[1746077640078,23.32,148.9,148.82,30.0382]
[1746077640977,6.7165,148.87,148.82,30.0382]
[1746077641173,23.32,148.9,148.82,23.32]
[1746077641381,7.12624912,148.91,148.82,23.32]
[1746077641582,2.1065,148.93,148.9,6.7148]
[1746077642984,8.8201,148.93,148.9,6.7148]
[1746077643183,7.12624912,148.96,148.9,6.7148]
[1746077643384,7.12624912,148.96,148.91,6.7142]
[1746077643586,6.713,148.95,148.91,6.7142]
[1746077643785,7.12624912,148.96,148.86,25.4378]
[1746077644087,7.12624912,148.96,148.89,6.7153]
[1746077644290,6.7139,148.93,148.89,6.7153]
[1746077644780,6.7139,148.93,148.86,25.4378]
[1746077645387,6.7139,148.93,148.89,6.7151]
[1746077647788,6.714,148.92,148.89,6.7151]
[1746077648189,6.714,148.92,148.88,6.7156]
[1746077651086,6.7145,148.91,148.88,6.7156]
[1746077652592,23.32,148.93,148.86,25.4378]
[1746077652982,6.7159,148.88,148.86,25.4378]
[1746077653493,23.32,148.93,148.86,25.4378]
[1746077653793,6.7155,148.89,148.86,25.4378]
[1746077654494,6.7158,148.88,148.86,25.4378]
[1746077654900,23.32,148.93,148.86,32.1544]
[1746077655393,23.32,148.93,148.87,6.7161]
[1746077656392,23.32,148.93,148.86,25.4378]
[1746077656694,25.2725,148.96,148.86,25.4378]
[1746077657089,6.7143,148.92,148.88,6.7156]
[1746077657294,25.2725,148.96,148.88,6.7156]
[1746077657795,6.7143,148.92,148.89,6.7152]
[1746077660492,6.7144,148.91,148.88,6.7156]
[1746077660698,25.2725,148.96,148.86,25.4378]
[1746077661400,6.7142,148.92,148.86,25.4378]
[1746077661590,25.2725,148.96,148.86,25.4378]
[1746077662600,25.2725,148.96,148.88,6.7156]
[1746077662791,25.2725,148.96,148.86,25.4378]
[1746077663198,6.7139,148.93,148.89,6.715]
[1746077663899,6.714,148.92,148.89,6.715]
[1746077668197,6.714,148.92,148.86,25.4378]
[1746077668404,6.7135,148.93,148.9,6.7146]
[1746077668808,6.7132,148.94,148.91,6.7144]
[1746077669110,30.42504208,148.96,148.91,6.7144]
[1746077669805,6.7134,148.94,148.89,6.7149]
[1746077670407,6.7138,148.93,148.89,6.7149]
[1746077671106,6.714,148.92,148.89,6.7149]
[1746077671808,6.7145,148.91,148.88,6.7156]
[1746077672009,30.42504208,148.96,148.87,2.0238]
[1746077672209,30.42504208,148.96,148.86,25.4378]
[1746077672404,6.716,148.88,148.86,25.4378]
[1746077672606,7.10504208,148.93,148.86,25.4378]
[1746077672807,23.34,148.92,148.86,25.4378]
[1746077673607,6.7148,148.91,148.86,25.4378]
[1746077673810,23.34,148.92,148.86,25.4378]
[1746077674802,6.7162,148.88,148.86,25.4378]
[1746077676013,6.7155,148.89,148.86,25.4378]
[1746077676616,6.7159,148.88,148.86,25.4378]
[1746077679016,6.7154,148.89,148.86,32.1544]
[1746077680419,6.715,148.9,148.87,6.7162]
[1746077684022,6.715,148.9,148.86,32.1543]
[1746077685122,6.715,148.9,148.87,6.7162]
[1746077686521,6.715,148.9,148.86,32.1543]
[1746077688023,6.7153,148.89,148.86,32.1543]
[1746077689919,6.715,148.9,148.87,6.7161]
[1746077690518,6.7145,148.91,148.88,6.7157]
[1746077690732,1.16919769,148.98,148.86,25.4378]
[1746077690925,23.34,148.99,148.88,7.10504208]
[1746077691524,6.7135,148.93,148.9,6.7148]
[1746077691718,6.7135,148.93,148.9,30.0548]
[1746077691914,23.34,148.99,148.9,30.0548]
[1746077692224,23.34,148.99,148.9,23.34]
[1746077692824,6.7133,148.94,148.91,6.7144]
[1746077693526,6.7128,148.95,148.91,6.7144]
[1746077694727,6.7123,148.96,148.92,6.7137]
[1746077695426,7.10504208,148.98,148.9,23.34]
[1746077696629,7.10504208,148.98,148.91,6.7143]
[1746077696929,7.10504208,148.98,148.9,23.34]
[1746077697329,6.7124,148.96,148.92,6.7138]
[1746077698927,6.7126,148.95,148.91,6.7143]
[1746077700432,6.7131,148.94,148.91,6.7143]
[1746077700632,7.10504208,148.98,148.87,2.0912]
[1746077700832,7.10504208,148.98,148.88,23.46]
[1746077701423,9.03584208,148.98,148.88,23.46]
[1746077701627,6.7148,148.91,148.88,23.46]
[1746077702136,6.7148,148.91,148.88,30.1757]
[1746077702736,6.714,148.92,148.88,23.46]
[1746077703138,6.7143,148.92,148.88,23.46]
[1746077703832,6.7143,148.92,148.88,30.1753]
[1746077704335,6.7143,148.92,148.89,6.7153]
[1746077706229,9.03584208,148.98,148.88,23.46]
[1746077706433,25.4598,149.02,148.9,7.10504208]
[1746077706635,6.7109,148.99,148.94,6.7127]
[1746077706934,6.7109,148.99,148.94,23.46]
[1746077707137,6.7114,148.98,148.95,6.7125]
[1746077707438,23.46,149.02,148.95,6.7125]
[1746077707837,6.7112,148.99,148.95,6.7125]
[1746077708036,23.46,149.02,148.95,6.7125]
[1746077708337,6.7111,148.99,148.94,23.46]
[1746077708938,6.7111,148.99,148.95,6.7123]
[1746077710038,6.7105,149.0,148.96,6.7119]
[1746077710639,6.7109,148.99,148.96,6.7119]
[1746077713239,6.7105,149.0,148.96,6.7119]
[1746077714240,6.7109,148.99,148.96,6.7119]
[1746077717045,6.7105,149.0,148.96,6.7119]
[1746077717243,6.7105,149.0,148.94,23.46]
[1746077717839,30.1698,149.02,148.94,23.46]
[1746077718045,6.7098,149.02,148.94,23.46]
[1746077718240,2.0204,149.04,148.94,23.46]
[1746077718841,6.7099,149.01,148.94,23.46]
[1746077719246,6.7099,149.01,148.97,6.7114]
[1746077719745,6.7099,149.01,148.94,23.46]
[1746077721846,6.7096,149.02,148.94,23.46]
[1746077722253,23.44,149.05,148.94,23.46]
[1746077722748,6.7094,149.03,148.99,6.7105]
[1746077722949,6.7094,149.03,148.99,30.1505]
[1746077723151,23.44,149.05,148.99,30.1505]
[1746077723350,6.7094,149.03,148.99,30.1505]
[1746077724650,6.7094,149.03,149.0,6.7103]
[1746077726559,6.7095,149.02,148.99,30.1506]
[1746077726856,23.44,149.05,148.99,23.44]
[1746077727560,6.7102,149.01,148.99,23.44]
[1746077727754,7.10504208,149.03,148.95,23.36]
[1746077728058,7.10504208,149.03,148.95,30.0723]
[1746077728552,6.711,148.99,148.95,30.0723]
[1746077729053,6.7105,149.0,148.96,6.7121]
[1746077729258,7.10504208,149.03,148.95,23.36]
[1746077730159,6.7104,149.0,148.95,23.36]
[1746077730665,6.7104,149.0,148.96,6.7118]
[1746077731260,6.7104,149.0,148.95,23.36]
[1746077731461,6.7104,149.0,148.97,6.7116]
[1746077736564,6.7101,149.01,148.98,6.7112]
[1746077737171,1.16837334,149.08,148.96,7.10504208]
[1746077737467,7.10504208,149.14,148.99,7.10504208]
[1746077737664,1.2328096,149.13,149.0,4.1627]
[1746077737860,7.10504208,149.14,149.01,23.36]
[1746077738456,6.7053,149.12,149.08,6.7067]
[1746077738653,6.7053,149.12,149.0,4.1627]
[1746077738654,6.7053,149.12,149.05,23.36]
[1746077739060,6.7053,149.12,149.07,6.7069]
[1746077739261,6.7045,149.13,149.05,23.36]
[1746077739468,6.7045,149.13,149.08,6.7064]
[1746077739765,6.7045,149.13,149.06,2.0634]
[1746077740566,6.705,149.12,149.06,2.0634]
[1746077740866,6.705,149.12,149.08,6.7064]
[1746077741268,6.7046,149.13,149.08,6.7064]
[1746077741565,1.9675,149.15,149.08,6.7064]
[1746077742069,6.7051,149.12,149.08,6.7064]
[1746077742264,1.9675,149.15,149.06,2.0634]
[1746077742770,157.8170669,149.19,149.08,7.10504208]
[1746077743067,164.5189669,149.19,149.11,7.10504208]
[1746077743263,157.8170669,149.19,149.11,7.10504208]
[1746077744271,157.8170669,149.19,149.12,23.34]
[1746077744463,157.8170669,149.19,149.13,1.9502]
[1746077744664,164.5189669,149.19,149.13,1.9502]
[1746077744864,157.8170669,149.19,149.13,1.9502]
[1746077745370,6.7027,149.17,149.13,1.9502]
[1746077746166,6.7032,149.16,149.13,1.9502]
[1746077746771,157.8170669,149.19,149.13,1.9502]
[1746077746970,164.92210898,149.19,149.13,1.9502]
[1746077747174,167.00050898,149.19,149.1,23.34]
[1746077747473,6.7044,149.14,149.1,23.34]
[1746077747673,167.00050898,149.19,149.1,23.34]
[1746077747874,6.7044,149.14,149.1,23.34]
[1746077748576,6.7044,149.14,149.1,30.0458]
[1746077751276,6.7046,149.13,149.1,23.34]
[1746077752279,9.18344208,149.19,149.1,23.34]
[1746077752474,7.10504208,149.16,149.1,23.34]
[1746077752681,30.44504208,149.16,149.1,23.34]
[1746077752979,30.44504208,149.16,149.08,2.0658]
[1746077753178,7.10504208,149.13,149.07,23.34]
[1746077753582,6.7066,149.09,149.07,23.34]
[1746077755477,2.0917,149.15,149.07,23.34]
[1746077755981,6.7059,149.1,149.07,30.0472]
[1746077756477,6.7059,149.1,149.07,23.34]
[1746077757571,6.7059,149.1,149.07,30.0472]
[1746077757976,6.7059,149.1,149.07,23.34]
[1746077759984,26.0117,149.15,149.07,23.34]
[1746077760284,8.33765622,149.14,149.07,23.34]
[1746077760479,7.10504208,149.14,149.07,23.34]
[1746077760682,6.7062,149.1,149.07,23.34]
[1746077760886,1.9628,149.13,149.05,1.9302]
[1746077762590,6.7061,149.1,149.06,6.7076]
[1746077762791,6.7061,149.1,149.05,1.9302]
[1746077763386,1.9628,149.13,149.05,1.9302]
[1746077764090,6.7068,149.08,149.05,1.9302]
[1746077764489,1.9628,149.13,149.05,1.9302]
[1746077765291,6.7061,149.1,149.06,6.7075]
[1746077766491,6.706,149.1,149.06,6.7075]
[1746077767497,9.06784208,149.13,149.05,8.6381]
[1746077767689,9.06784208,149.13,149.05,1.9302]
[1746077768291,6.707,149.08,149.05,1.9302]
[1746077768893,6.7072,149.07,149.05,1.9302]
[1746077769192,7.10504208,149.1,149.01,1.9621]
[1746077769395,6.7084,149.05,149.01,25.8821]
[1746077770393,6.7084,149.05,149.01,32.5918]
[1746077770799,6.7078,149.06,149.01,32.5918]
[1746077771091,7.10504208,149.1,149.01,25.8821]
[1746077771491,6.7067,149.09,149.01,25.8821]
[1746077771688,7.10504208,149.1,149.04,6.7082]
[1746077771994,6.707,149.08,149.01,25.8821]
[1746077772290,7.10504208,149.1,149.05,6.7078]
[1746077772592,6.7068,149.08,149.05,6.7078]
[1746077773000,23.92,149.11,149.07,6.7068]
[1746077773298,30.6256,149.11,149.05,23.92]
[1746077773793,30.6256,149.11,149.07,6.7068]
[1746077773994,30.6256,149.11,149.05,23.92]
[1746077774996,23.92,149.11,149.05,23.92]
[1746077775295,23.92,149.11,149.08,6.7065]
[1746077776999,30.6255,149.11,149.08,6.7065]
[1746077777201,1.9628,149.13,149.06,1.9609]
[1746077777202,1.9628,149.13,149.09,6.706]
[1746077777599,6.7048,149.13,149.09,6.706]
[1746077777996,6.7048,149.13,149.1,6.7057]
[1746077778701,37.72924208,149.14,149.1,6.7057]
[1746077779002,23.92,149.14,149.09,6.7062]
[1746077779397,6.7045,149.13,149.09,6.7062]
[1746077780806,30.6242,149.14,149.1,6.7058]
[1746077782112,6.7046,149.13,149.09,6.7061]
[1746077782311,23.92,149.14,149.06,1.9609]
[1746077782614,6.7049,149.13,149.09,6.706]
[1746077782914,23.92,149.14,149.06,1.9609]
[1746077783113,31.02504208,149.14,149.06,1.9609]
[1746077783713,6.7047,149.13,149.09,6.706]
[1746077784307,6.705,149.12,149.08,6.7066]
[1746077786017,6.705,149.12,149.09,6.7062]
[1746077786815,6.7046,149.13,149.09,6.7062]
[1746077788019,6.7051,149.12,149.09,6.7062]
[1746077790121,6.7047,149.13,149.09,6.7062]
[1746077790618,31.02504208,149.14,149.08,6.7066]
[1746077790914,6.7052,149.12,149.08,6.7066]
[1746077791124,31.02504208,149.14,149.08,6.7066]
[1746077791520,6.7061,149.1,149.07,6.7071]
[1746077792216,6.7061,149.1,149.06,8.6684]
[1746077792415,7.10504208,149.11,149.05,23.92]
[1746077792713,23.9,149.1,149.03,6.7089]
[1746077792910,25.8489,149.1,149.01,27.7789]
[1746077793415,6.7065,149.09,149.01,27.7789]
[1746077793816,6.7065,149.09,149.05,6.7078]
[1746077794723,6.7068,149.08,149.05,6.7078]
[1746077794915,6.7068,149.08,149.04,6.7084]
[1746077795723,6.7075,149.07,149.03,6.7088]
[1746077795924,25.8489,149.1,149.01,27.7789]
[1746077796512,6.7069,149.08,149.01,27.7789]
[1746077796924,6.7069,149.08,149.04,6.7083]
[1746077798025,6.7073,149.07,149.04,6.7083]
[1746077798226,6.7073,149.07,149.03,6.7088]
[1746077798425,25.8489,149.1,149.03,6.7088]
[1746077800027,25.8489,149.1,149.04,6.7085]
[1746077801231,6.7075,149.07,149.04,6.7085]
[1746077804727,6.7075,149.07,149.03,6.7088]
[1746077805128,6.7077,149.06,149.01,27.7789]
[1746077805329,6.7077,149.06,149.02,6.709]
[1746077805530,6.7077,149.06,149.01,27.7789]
[1746077806130,6.7082,149.05,149.01,25.8168]
[1746077806625,6.7082,149.05,149.01,32.5264]
[1746077807833,6.7082,149.05,149.02,6.7092]
[1746077808130,6.7079,149.06,149.02,6.7092]
[1746077809326,6.7073,149.07,149.01,25.8168]
[1746077809628,25.8489,149.1,149.01,25.8168]
[1746077811237,6.7073,149.07,149.01,25.8168]
[1746077811840,6.7073,149.07,149.03,6.7086]
[1746077812234,6.707,149.08,149.01,25.8168]
[1746077813037,6.707,149.08,149.04,6.7082]
[1746077813336,6.7074,149.07,149.04,6.7082]
[1746077816840,6.707,149.08,149.04,6.7082]
[1746077817242,25.8489,149.1,149.04,6.7082]
[1746077817434,6.707,149.08,149.04,6.7082]
[1746077818040,6.707,149.08,149.05,6.7081]
[1746077822450,6.707,149.08,149.04,6.7085]
[1746077824849,6.707,149.08,149.05,6.708]
[1746077826249,6.7065,149.09,149.06,6.7076]
[1746077826751,6.7056,149.11,149.07,6.7069]
[1746077827449,6.7059,149.1,149.06,6.7076]
[1746077827653,7.10504208,149.11,149.02,23.76]
[1746077827945,6.7075,149.07,149.02,23.76]
[1746077829251,6.7075,149.07,149.03,6.7087]
[1746077829550,6.7077,149.06,149.03,6.7087]
[1746077832351,23.76,149.1,149.02,23.76]
[1746077832656,23.76,149.1,148.96,358.0]
[1746077832657,7.10504208,149.08,148.99,23.76]
[1746077832845,7.10504208,149.05,148.99,23.76]
[1746077833151,30.86504208,149.06,148.99,23.76]
[1746077834656,6.7091,149.03,148.99,23.76]
[1746077835149,30.86504208,149.06,148.99,23.76]
[1746077835352,6.7096,149.02,148.99,23.76]
[1746077835545,30.86504208,149.06,148.99,23.76]
[1746077835852,6.7091,149.03,148.99,6.7107]
[1746077837658,6.7095,149.02,148.99,6.7107]
[1746077837954,6.7095,149.02,148.98,6.7111]
[1746077838265,6.709,149.04,148.97,2.102]
[1746077838451,30.86504208,149.06,148.97,2.102]
[1746077840352,7.10504208,149.03,148.97,2.102]
[1746077841055,6.7106,149.0,148.97,2.102]
[1746077841255,6.7106,149.0,148.96,6.7119]
[1746077841557,7.10504208,149.03,148.96,6.7119]
[1746077842057,6.7099,149.01,148.96,6.7119]
[1746077842258,7.10504208,149.03,148.96,6.7119]
[1746077842752,6.7104,149.0,148.96,6.7119]
[1746077844658,23.76,149.02,148.95,1.9806]
[1746077844958,23.76,149.02,148.94,8.7134]
[1746077846461,23.76,149.02,148.95,6.7126]
[1746077848262,6.7112,148.99,148.95,6.7126]
[1746077856667,6.7113,148.98,148.95,6.7126]
[1746077858368,6.7113,148.98,148.94,8.7134]
[1746077858765,6.711,148.99,148.94,2.0007]
[1746077858966,6.711,148.99,148.95,6.7123]
[1746077859168,23.76,149.02,148.95,6.7123]
[1746077860660,6.7111,148.99,148.95,6.7123]
[1746077861471,6.7114,148.98,148.95,6.7123]
[1746077866576,6.7118,148.97,148.94,8.7136]
[1746077867773,4.54311981,148.99,148.94,2.0007]
[1746077868278,6.712,148.97,148.94,8.7137]
[1746077870479,23.76,149.02,148.96,6.712]
[1746077870671,4.54311981,149.0,148.96,6.712]
[1746077870976,11.25381981,149.0,148.94,2.0007]
[1746077871575,11.25381981,149.0,148.97,6.7114]
[1746077871881,4.54311981,149.0,148.97,6.7114]
[1746077872581,11.25371981,149.0,148.97,6.7114]
[1746077873279,11.25371981,149.0,148.96,6.7119]
[1746077875583,11.25371981,149.0,148.97,6.7116]
[1746077875777,11.25371981,149.0,148.94,2.0007]
[1746077876181,11.25371981,149.0,148.96,6.7119]
[1746077876884,6.7108,148.99,148.96,6.7119]
[1746077878383,6.7115,148.98,148.95,6.7124]
[1746077878686,4.54311981,148.98,148.94,2.0007]
[1746077878984,6.712,148.97,148.94,2.0007]
[1746077879877,6.712,148.97,148.94,8.7135]
[1746077880077,11.25451981,148.98,148.94,2.0007]
[1746077880880,11.25371981,149.0,148.94,2.0007]
[1746077881081,6.7106,149.0,148.95,4.54311981]
[1746077881485,6.7108,148.99,148.96,6.712]
[1746077881886,4.54311981,149.01,148.94,2.0007]
[1746077882086,4.54311981,148.99,148.96,6.7119]
[1746077882681,11.25401981,148.99,148.96,6.7119]
[1746077885991,4.54311981,148.99,148.97,6.7116]
[1746077890288,4.54311981,148.99,148.96,6.7119]
[1746077891094,4.54311981,148.99,148.94,2.0007]
[1746077891095,4.54311981,148.99,148.97,6.7116]
[1746077892695,4.54311981,148.99,148.94,2.0007]
[1746077893084,6.7121,148.97,148.94,2.0007]
[1746077893290,11.25521981,148.97,148.93,30.4732]
[1746077895896,4.54311981,148.95,148.93,23.76]
[1746077896099,4.54311981,148.95,148.92,6.7138]
[1746077898397,11.25571981,148.95,148.92,6.7138]
[1746077908500,11.25571981,148.95,148.92,6.67452036]
[1746077909400,4.54311981,148.95,148.93,6.7135]
[1746077913105,4.54311981,148.95,148.94,6.7131]
[1746077913402,23.6,148.98,148.92,4.54311981]
[1746077913703,23.56,149.01,148.94,4.54311981]
[1746077913905,23.56,149.01,148.95,25.503]
[1746077914101,6.7102,149.01,148.97,6.7113]
[1746077914303,4.54311981,149.02,148.95,25.503]
[1746077914503,4.54311981,149.02,148.96,4.54311981]
[1746077914799,4.54311981,149.02,148.99,6.7104]
[1746077915001,4.54311981,149.03,148.98,4.54311981]
[1746077915399,4.54311981,149.03,149.0,6.7101]
[1746077915603,4.54311981,149.03,148.96,8.72351981]
[1746077915902,6.7095,149.02,148.99,6.7105]
[1746077916103,4.54311981,149.03,148.99,6.7105]
[1746077916700,11.25241981,149.03,148.99,6.7105]
[1746077920308,11.25241981,149.03,149.0,6.7103]
[1746077921010,4.54311981,149.03,149.0,6.7103]
[1746077921504,4.54311981,149.03,149.01,6.7098]
[1746077923014,11.25091981,149.06,149.02,6.7094]
[1746077923713,11.25091981,149.06,149.03,6.709]
[1746077923916,4.54311981,149.06,149.03,6.709]
[1746077925324,4.54311981,149.06,149.0,6.49111981]
[1746077926420,4.54311981,149.06,149.04,6.7084]
[1746077927728,4.54311981,149.06,149.01,1.9795]
[1746077928222,4.54311981,149.06,149.03,6.7087]
[1746077928423,11.25041981,149.07,149.03,6.7087]
[1746077930126,11.25041981,149.07,149.04,6.7085]
[1746077932729,4.54311981,149.07,149.04,6.7085]
[1746077935724,4.54311981,149.09,149.03,23.54]
[1746077936328,11.24971981,149.09,149.05,6.7079]
[1746077939232,4.54311981,149.07,149.04,6.7084]
[1746077940332,11.25041981,149.07,149.04,6.7084]
[1746077949940,6.707,149.08,149.04,6.7084]
[1746077950236,4.54311981,149.09,149.03,23.54]
[1746077951231,6.7068,149.08,149.05,6.7079]
[1746077953633,6.7074,149.07,149.04,6.7084]
[1746077957747,6.7077,149.06,149.04,6.7084]
[1746077957952,6.7077,149.06,149.03,30.2488]
[1746077958145,4.54311981,149.09,149.03,23.54]
[1746077958848,6.7075,149.07,149.04,6.7085]
[1746077960751,6.7069,149.08,149.05,6.7078]